[Event "Late-Titled-Tuesday-Blitz-August-29-2023"]
[Site "Chess.com"]
[Date "2023.08.29"]
[Round "10"]
[White "DeTimmerman"]
[Black "ArmanGhevondyanchess"]
[Result "1/2-1/2"]
[WhiteElo "2678"]
[BlackElo "2398"]
[TimeControl "180+1"]
[EndTime "15:54:22 PDT"]
[Termination "Game drawn - insufficient material"]

1. b4 {[%clk 0:02:59.4]} 1... Nf6 {[%clk 0:02:59.1]} 2. Bb2 {[%clk 0:02:59.7]}
2... d5 {[%clk 0:02:59.5]} 3. b5 {[%clk 0:02:59.8]} 3... g6 {[%clk 0:02:59.5]}
4. e3 {[%clk 0:03:00.3]} 4... Bg7 {[%clk 0:03:00.1]} 5. c4 {[%clk 0:03:00.8]}
5... O-O {[%clk 0:03:00.3]} 6. a4 {[%clk 0:03:00.8]} 6... c5 {[%clk 0:02:59.6]}
7. cxd5 {[%clk 0:03:00.3]} 7... Qxd5 {[%clk 0:02:56.4]} 8. Nf3 {[%clk 0:03:00]}
8... b6 {[%clk 0:02:54.3]} 9. Nc3 {[%clk 0:02:58.6]} 9... Qd6 {[%clk 0:02:50.8]}
10. Be2 {[%clk 0:02:59.5]} 10... Bb7 {[%clk 0:02:51.1]} 11. O-O {[%clk 0:02:59]}
11... Nbd7 {[%clk 0:02:47.9]} 12. d4 {[%clk 0:02:59.3]} 12... Rfd8 {[%clk
0:02:44.7]} 13. h3 {[%clk 0:02:54.4]} 13... Rac8 {[%clk 0:02:44.2]} 14. a5
{[%clk 0:02:48.9]} 14... e5 {[%clk 0:02:41.4]} 15. dxe5 {[%clk 0:02:48.1]} 15...
Qxd1 {[%clk 0:02:32.5]} 16. Rfxd1 {[%clk 0:02:47.8]} 16... Ne4 {[%clk 0:02:32]}
17. Nxe4 {[%clk 0:01:49.7]} 17... Bxe4 {[%clk 0:02:31]} 18. axb6 {[%clk
0:01:50.6]} 18... axb6 {[%clk 0:02:29.5]} 19. Ng5 {[%clk 0:01:48.4]} 19... Bc2
{[%clk 0:02:15.2]} 20. Rdc1 {[%clk 0:01:46.2]} 20... Bb3 {[%clk 0:02:15.1]} 21.
f4 {[%clk 0:01:43.8]} 21... c4 {[%clk 0:02:06.6]} 22. Bd4 {[%clk 0:01:37]} 22...
Nc5 {[%clk 0:02:05.7]} 23. Bxc4 {[%clk 0:01:35.7]} 23... Bxc4 {[%clk 0:02:01.7]}
24. Rxc4 {[%clk 0:01:36.6]} 24... Nb3 {[%clk 0:02:02.2]} 25. Raa4 {[%clk
0:01:23.9]} 25... Nc5 {[%clk 0:01:41.3]} 26. Bxc5 {[%clk 0:01:21.4]} 26... Rxc5
{[%clk 0:01:35]} 27. Rxc5 {[%clk 0:01:21.3]} 27... bxc5 {[%clk 0:01:35.9]} 28.
Rc4 {[%clk 0:01:20.7]} 28... Rc8 {[%clk 0:01:35.6]} 29. Ne4 {[%clk 0:01:06.1]}
29... Bf8 {[%clk 0:01:35.4]} 30. Nd6 {[%clk 0:01:02.5]} 30... Rd8 {[%clk
0:01:27.7]} 31. Rxc5 {[%clk 0:01:02.3]} 31... Bxd6 {[%clk 0:01:28]} 32. exd6
{[%clk 0:01:03.2]} 32... Rxd6 {[%clk 0:01:28.9]} 33. e4 {[%clk 0:00:58.5]} 33...
Rd4 {[%clk 0:01:28.8]} 34. Rc8+ {[%clk 0:00:55.7]} 34... Kg7 {[%clk 0:01:28.9]}
35. Re8 {[%clk 0:00:56.6]} 35... Rb4 {[%clk 0:01:27.9]} 36. Re5 {[%clk
0:00:56.4]} 36... Rb2 {[%clk 0:01:22.2]} 37. Kh2 {[%clk 0:00:54]} 37... Rb4
{[%clk 0:01:15.1]} 38. Kg3 {[%clk 0:00:53.9]} 38... f6 {[%clk 0:01:15]} 39. Re7+
{[%clk 0:00:53.8]} 39... Kh6 {[%clk 0:01:11.6]} 40. Rf7 {[%clk 0:00:49.4]} 40...
Rb3+ {[%clk 0:00:59.3]} 41. Kh2 {[%clk 0:00:48.1]} 41... Rxb5 {[%clk 0:00:56.5]}
42. Rxf6 {[%clk 0:00:48.3]} 42... Rb4 {[%clk 0:00:50.8]} 43. e5 {[%clk
0:00:47.5]} 43... Kg7 {[%clk 0:00:47.2]} 44. Kg3 {[%clk 0:00:47.1]} 44... Rb3+
{[%clk 0:00:46.8]} 45. Kg4 {[%clk 0:00:46.5]} 45... Re3 {[%clk 0:00:46.8]} 46.
g3 {[%clk 0:00:46.6]} 46... Re1 {[%clk 0:00:40.3]} 47. Rd6 {[%clk 0:00:44]}
47... Re3 {[%clk 0:00:35.4]} 48. h4 {[%clk 0:00:40.9]} 48... h5+ {[%clk
0:00:34.3]} 49. Kh3 {[%clk 0:00:41.1]} 49... Re2 {[%clk 0:00:34.8]} 50. Rf6
{[%clk 0:00:37.7]} 50... Kh7 {[%clk 0:00:30.4]} 51. Rc6 {[%clk 0:00:35.6]} 51...
Kg7 {[%clk 0:00:29.8]} 52. Rd6 {[%clk 0:00:36.1]} 52... Kf7 {[%clk 0:00:28.2]}
53. Rf6+ {[%clk 0:00:35.6]} 53... Kg7 {[%clk 0:00:28.6]} 54. f5 {[%clk 0:00:36]}
54... gxf5 {[%clk 0:00:21.2]} 55. Rxf5 {[%clk 0:00:36.9]} 55... Kg6 {[%clk
0:00:20.5]} 56. Rg5+ {[%clk 0:00:37.3]} 56... Kh6 {[%clk 0:00:21.1]} 57. g4
{[%clk 0:00:36]} 57... Re3+ {[%clk 0:00:20.8]} 58. Kg2 {[%clk 0:00:36.3]} 58...
hxg4 {[%clk 0:00:21.7]} 59. Kf2 {[%clk 0:00:36.6]} 59... Re4 {[%clk 0:00:18.7]}
60. Kg3 {[%clk 0:00:36.4]} 60... Kh7 {[%clk 0:00:16.8]} 61. Rf5 {[%clk
0:00:32.3]} 61... Kg6 {[%clk 0:00:15.3]} 62. Rf6+ {[%clk 0:00:32.4]} 62... Kh5
{[%clk 0:00:15.8]} 63. e6 {[%clk 0:00:29.7]} 63... Re3+ {[%clk 0:00:16.1]} 64.
Kf4 {[%clk 0:00:30]} 64... Rf3+ {[%clk 0:00:15.7]} 65. Ke5 {[%clk 0:00:30.3]}
65... Re3+ {[%clk 0:00:11.9]} 66. Kd4 {[%clk 0:00:24.5]} 66... Re1 {[%clk
0:00:11.7]} 67. Rf5+ {[%clk 0:00:23.9]} 67... Kxh4 {[%clk 0:00:10.4]} 68. Re5
{[%clk 0:00:24.8]} 68... Rd1+ {[%clk 0:00:07.4]} 69. Kc3 {[%clk 0:00:24.4]}
69... Rd8 {[%clk 0:00:07.9]} 70. e7 {[%clk 0:00:23.4]} 70... Re8 {[%clk
0:00:08.4]} 71. Kd2 {[%clk 0:00:23.6]} 71... Kh3 {[%clk 0:00:08.3]} 72. Ke2
{[%clk 0:00:23.8]} 72... g3 {[%clk 0:00:07.4]} 73. Kf1 {[%clk 0:00:24.1]} 73...
Kg4 {[%clk 0:00:06.1]} 74. Kg2 {[%clk 0:00:24]} 74... Kf4 {[%clk 0:00:06.9]} 75.
Re2 {[%clk 0:00:23.7]} 75... Kf5 {[%clk 0:00:07.6]} 76. Kxg3 {[%clk 0:00:24]}
76... Kf6 {[%clk 0:00:08.5]} 77. Re3 {[%clk 0:00:24.5]} 77... Rxe7 {[%clk
0:00:09.4]} 78. Rxe7 {[%clk 0:00:25.2]} 78... Kxe7 {[%clk 0:00:10.3]} 1/2-1/2

[Event "Late-Titled-Tuesday-Blitz-August-29-2023"]
[Site "Chess.com"]
[Date "2023.08.29"]
[Round "10"]
[White "S-Fazulyanov"]
[Black "Young_Catalan_Player09"]
[Result "0-1"]
[WhiteElo "2522"]
[BlackElo "2448"]
[TimeControl "180+1"]
[EndTime "15:54:22 PDT"]
[Termination "Young_Catalan_Player09 won on time"]

1. e4 {[%clk 0:03:00.3]} 1... c5 {[%clk 0:02:56]} 2. Nf3 {[%clk 0:03:00]} 2...
Nc6 {[%clk 0:02:56]} 3. d4 {[%clk 0:02:59.7]} 3... cxd4 {[%clk 0:02:56.7]} 4.
Nxd4 {[%clk 0:02:59.6]} 4... g6 {[%clk 0:02:57.4]} 5. c4 {[%clk 0:02:58.4]} 5...
Nf6 {[%clk 0:02:57.3]} 6. Nc3 {[%clk 0:02:58.3]} 6... d6 {[%clk 0:02:57.8]} 7.
Be3 {[%clk 0:02:57.7]} 7... Ng4 {[%clk 0:02:54.4]} 8. Nxc6 {[%clk 0:02:57.3]}
8... bxc6 {[%clk 0:02:55.3]} 9. Qd4 {[%clk 0:02:48]} 9... e5 {[%clk 0:02:52.9]}
10. Qd2 {[%clk 0:02:47]} 10... Nxe3 {[%clk 0:02:51.9]} 11. Qxe3 {[%clk
0:02:47.5]} 11... Bg7 {[%clk 0:02:41.5]} 12. O-O-O {[%clk 0:02:44.5]} 12... O-O
{[%clk 0:02:37.3]} 13. c5 {[%clk 0:02:43.3]} 13... Qh4 {[%clk 0:02:31]} 14. g3
{[%clk 0:02:42.3]} 14... Qh5 {[%clk 0:02:25.9]} 15. Be2 {[%clk 0:02:41.6]} 15...
Qh3 {[%clk 0:02:24.7]} 16. Kb1 {[%clk 0:02:28.5]} 16... Bh6 {[%clk 0:02:17.5]}
17. Qd3 {[%clk 0:02:24.9]} 17... dxc5 {[%clk 0:02:17.1]} 18. Qc4 {[%clk
0:02:24.5]} 18... Be6 {[%clk 0:01:28.9]} 19. Qxc5 {[%clk 0:02:23.3]} 19... Rab8
{[%clk 0:01:18.2]} 20. Bc4 {[%clk 0:01:57]} 20... Rfc8 {[%clk 0:01:07.2]} 21.
Bxe6 {[%clk 0:01:35.7]} 21... Qxe6 {[%clk 0:01:08.1]} 22. Qxa7 {[%clk
0:01:35.4]} 22... Qc4 {[%clk 0:01:00.5]} 23. Ka1 {[%clk 0:01:22.4]} 23... Bf8
{[%clk 0:00:49.2]} 24. Rc1 {[%clk 0:00:50.9]} 24... Bc5 {[%clk 0:00:42.1]} 25.
Qa4 {[%clk 0:00:43.8]} 25... Rb4 {[%clk 0:00:40.6]} 26. Qc2 {[%clk 0:00:43.5]}
26... Rcb8 {[%clk 0:00:39.6]} 27. Nd1 {[%clk 0:00:39.6]} 27... Qxc2 {[%clk
0:00:23.2]} 28. Rxc2 {[%clk 0:00:40.2]} 28... Bd4 {[%clk 0:00:24.1]} 29. Re1
{[%clk 0:00:32.4]} 29... c5 {[%clk 0:00:22.7]} 30. Ree2 {[%clk 0:00:30.5]} 30...
c4 {[%clk 0:00:22.4]} 31. f4 {[%clk 0:00:28.2]} 31... f6 {[%clk 0:00:22]} 32.
Nc3 {[%clk 0:00:23]} 32... Rxb2 {[%clk 0:00:21.3]} 33. Rxb2 {[%clk 0:00:18.4]}
33... Bxc3 {[%clk 0:00:19.8]} 34. Kb1 {[%clk 0:00:18]} 34... Bxb2 {[%clk
0:00:19.5]} 35. Rxb2 {[%clk 0:00:18.9]} 35... Rd8 {[%clk 0:00:19.6]} 36. Kc2
{[%clk 0:00:17.7]} 36... Rd4 {[%clk 0:00:18.8]} 37. Rb6 {[%clk 0:00:14.9]} 37...
Rxe4 {[%clk 0:00:18.7]} 38. Rxf6 {[%clk 0:00:14.9]} 38... exf4 {[%clk
0:00:18.2]} 39. Rxf4 {[%clk 0:00:13.2]} 39... Re2+ {[%clk 0:00:18.5]} 40. Kc3
{[%clk 0:00:13.8]} 40... Rxa2 {[%clk 0:00:18.4]} 41. h4 {[%clk 0:00:12.8]} 41...
Rg2 {[%clk 0:00:18.6]} 42. g4 {[%clk 0:00:12.8]} 42... Rh2 {[%clk 0:00:15.3]}
43. g5 {[%clk 0:00:12.9]} 43... Kg7 {[%clk 0:00:15.3]} 44. Kxc4 {[%clk
0:00:13.2]} 44... Rd2 {[%clk 0:00:15.1]} 45. Kc3 {[%clk 0:00:12.8]} 45... Rd7
{[%clk 0:00:15]} 46. Kc4 {[%clk 0:00:13.5]} 46... h6 {[%clk 0:00:15.4]} 47. Rg4
{[%clk 0:00:09.6]} 47... Rd1 {[%clk 0:00:14.5]} 48. Kc3 {[%clk 0:00:10]} 48...
Rd5 {[%clk 0:00:14.1]} 49. Kc4 {[%clk 0:00:09.4]} 49... Rd7 {[%clk 0:00:14.3]}
50. h5 {[%clk 0:00:09.9]} 50... gxh5 {[%clk 0:00:13.3]} 51. gxh6+ {[%clk
0:00:10.1]} 51... Kxh6 {[%clk 0:00:13.6]} 52. Rh4 {[%clk 0:00:10.4]} 52... Kg5
{[%clk 0:00:14.1]} 53. Rh2 {[%clk 0:00:11]} 53... h4 {[%clk 0:00:14.6]} 54. Kc3
{[%clk 0:00:11.9]} 54... Kg4 {[%clk 0:00:14.4]} 55. Kc2 {[%clk 0:00:12.5]} 55...
h3 {[%clk 0:00:14.7]} 56. Rh1 {[%clk 0:00:11.9]} 56... Rh7 {[%clk 0:00:13.5]}
57. Kd2 {[%clk 0:00:11.5]} 57... h2 {[%clk 0:00:13.9]} 58. Ke2 {[%clk
0:00:12.3]} 58... Kg3 {[%clk 0:00:14.5]} 59. Kf1 {[%clk 0:00:12.8]} 59... Rf7+
{[%clk 0:00:14.9]} 60. Ke2 {[%clk 0:00:13.2]} 60... Kg2 {[%clk 0:00:15.8]} 0-1

[Event "Late-Titled-Tuesday-Blitz-August-29-2023"]
[Site "Chess.com"]
[Date "2023.08.29"]
[Round "10"]
[White "laskakid"]
[Black "Apocalyps999"]
[Result "1/2-1/2"]
[WhiteElo "2195"]
[BlackElo "2322"]
[TimeControl "180+1"]
[EndTime "15:54:46 PDT"]
[Termination "Game drawn by stalemate"]

1. d4 {[%clk 0:03:00.9]} 1... d5 {[%clk 0:02:59.9]} 2. c4 {[%clk 0:03:00.8]}
2... e6 {[%clk 0:03:00.1]} 3. Nc3 {[%clk 0:03:00.7]} 3... Be7 {[%clk 0:02:59.8]}
4. Nf3 {[%clk 0:02:59.9]} 4... Nf6 {[%clk 0:02:59.9]} 5. Bg5 {[%clk 0:02:59.7]}
5... h6 {[%clk 0:03:00.3]} 6. Bxf6 {[%clk 0:02:57.8]} 6... Bxf6 {[%clk
0:03:00.7]} 7. e3 {[%clk 0:02:58.1]} 7... O-O {[%clk 0:03:00.6]} 8. Rc1 {[%clk
0:02:56.8]} 8... c6 {[%clk 0:03:00.4]} 9. Qc2 {[%clk 0:02:55.5]} 9... a5 {[%clk
0:02:57.6]} 10. Bd3 {[%clk 0:02:52.6]} 10... Na6 {[%clk 0:02:56.3]} 11. a3
{[%clk 0:02:52.2]} 11... Nc7 {[%clk 0:02:53.7]} 12. O-O {[%clk 0:02:48.5]} 12...
Be7 {[%clk 0:02:41.1]} 13. e4 {[%clk 0:02:41.2]} 13... dxc4 {[%clk 0:02:38.7]}
14. Bxc4 {[%clk 0:02:39.8]} 14... b5 {[%clk 0:02:31.3]} 15. Bd3 {[%clk
0:02:35.8]} 15... Bb7 {[%clk 0:02:29.3]} 16. Rfd1 {[%clk 0:02:20.7]} 16... b4
{[%clk 0:02:19.1]} 17. axb4 {[%clk 0:02:16.8]} 17... axb4 {[%clk 0:02:20]} 18.
Na4 {[%clk 0:02:07.8]} 18... Ra5 {[%clk 0:02:14.7]} 19. Ne5 {[%clk 0:01:52.5]}
19... Qxd4 {[%clk 0:01:54.4]} 20. Nxc6 {[%clk 0:01:43]} 20... Bxc6 {[%clk
0:01:48.2]} 21. Qxc6 {[%clk 0:01:42.8]} 21... Bg5 {[%clk 0:01:24.4]} 22. Qxc7
{[%clk 0:01:29.2]} 22... Rxa4 {[%clk 0:01:21.6]} 23. Bb5 {[%clk 0:01:09.7]}
23... Qa7 {[%clk 0:01:02.6]} 24. Bxa4 {[%clk 0:01:04.7]} 24... Qxa4 {[%clk
0:01:03.5]} 25. Qc6 {[%clk 0:00:55.2]} 25... Qa2 {[%clk 0:00:58.1]} 26. Rb1
{[%clk 0:00:49.6]} 26... Bf6 {[%clk 0:00:54.1]} 27. Qc2 {[%clk 0:00:46.8]} 27...
b3 {[%clk 0:00:52.9]} 28. Qd2 {[%clk 0:00:44.7]} 28... Qa4 {[%clk 0:00:53]} 29.
Qe2 {[%clk 0:00:42]} 29... Rc8 {[%clk 0:00:48.7]} 30. e5 {[%clk 0:00:39]} 30...
Rc2 {[%clk 0:00:44.3]} 31. Qe3 {[%clk 0:00:36.2]} 31... Bg5 {[%clk 0:00:40.4]}
32. Qd4 {[%clk 0:00:31.8]} 32... Qb5 {[%clk 0:00:20.6]} 33. h4 {[%clk
0:00:30.3]} 33... Be7 {[%clk 0:00:20.7]} 34. Ra1 {[%clk 0:00:28.2]} 34... Bc5
{[%clk 0:00:20.7]} 35. Qd8+ {[%clk 0:00:26.4]} 35... Kh7 {[%clk 0:00:20.6]} 36.
Qd3+ {[%clk 0:00:23.2]} 36... Qxd3 {[%clk 0:00:20]} 37. Rxd3 {[%clk 0:00:23.6]}
37... Rxf2 {[%clk 0:00:20]} 38. Kh2 {[%clk 0:00:21.5]} 38... Rxb2 {[%clk
0:00:19.6]} 39. Rc3 {[%clk 0:00:20.2]} 39... Bd4 {[%clk 0:00:19]} 40. Rd3 {[%clk
0:00:18.8]} 40... Bxe5+ {[%clk 0:00:19.1]} 41. Kh3 {[%clk 0:00:18.5]} 41... Re2
{[%clk 0:00:17.4]} 42. Rb1 {[%clk 0:00:16.1]} 42... b2 {[%clk 0:00:17.9]} 43.
Rb3 {[%clk 0:00:15.1]} 43... Rc2 {[%clk 0:00:17.7]} 44. g3 {[%clk 0:00:13.9]}
44... Rc1 {[%clk 0:00:17.7]} 45. R1xb2 {[%clk 0:00:13.4]} 45... Bxb2 {[%clk
0:00:17.8]} 46. Rxb2 {[%clk 0:00:13.9]} 46... Rf1 {[%clk 0:00:18]} 47. Kg2
{[%clk 0:00:12.4]} 47... Rf5 {[%clk 0:00:17.4]} 48. Rb7 {[%clk 0:00:11.9]} 48...
Kg6 {[%clk 0:00:17.5]} 49. g4 {[%clk 0:00:10.6]} 49... Rd5 {[%clk 0:00:15.1]}
50. Kg3 {[%clk 0:00:10.9]} 50... Rd3+ {[%clk 0:00:14.7]} 51. Kf4 {[%clk
0:00:11.3]} 51... Rd4+ {[%clk 0:00:15.2]} 52. Kf3 {[%clk 0:00:11.2]} 52... Kf6
{[%clk 0:00:15]} 53. Rb6 {[%clk 0:00:11.2]} 53... g6 {[%clk 0:00:14.1]} 54. Rb7
{[%clk 0:00:11.5]} 54... h5 {[%clk 0:00:13.4]} 55. g5+ {[%clk 0:00:10.9]} 55...
Ke5 {[%clk 0:00:13.5]} 56. Rxf7 {[%clk 0:00:09.9]} 56... Rxh4 {[%clk 0:00:14.1]}
57. Rf6 {[%clk 0:00:10.1]} 57... Rg4 {[%clk 0:00:12.5]} 58. Rxg6 {[%clk
0:00:10.4]} 58... Kf5 {[%clk 0:00:11.4]} 59. Rh6 {[%clk 0:00:08.9]} 59... Rxg5
{[%clk 0:00:10.4]} 60. Rh8 {[%clk 0:00:08.5]} 60... e5 {[%clk 0:00:09.7]} 61.
Rf8+ {[%clk 0:00:08.2]} 61... Ke6 {[%clk 0:00:10]} 62. Re8+ {[%clk 0:00:08.2]}
62... Kf7 {[%clk 0:00:08.1]} 63. Rh8 {[%clk 0:00:08]} 63... Kg7 {[%clk
0:00:06.6]} 64. Ra8 {[%clk 0:00:07.9]} 64... Kf6 {[%clk 0:00:07.5]} 65. Ra6+
{[%clk 0:00:07.9]} 65... Kf5 {[%clk 0:00:07.2]} 66. Ra5 {[%clk 0:00:08.2]} 66...
h4 {[%clk 0:00:07]} 67. Ra8 {[%clk 0:00:08.4]} 67... Rg3+ {[%clk 0:00:07.9]} 68.
Kf2 {[%clk 0:00:08.3]} 68... Ke4 {[%clk 0:00:08.6]} 69. Ra4+ {[%clk 0:00:07.9]}
69... Kf5 {[%clk 0:00:07.4]} 70. Rxh4 {[%clk 0:00:08]} 70... Rg4 {[%clk
0:00:07.6]} 71. Rxg4 {[%clk 0:00:07.4]} 71... Kxg4 {[%clk 0:00:08.5]} 72. Ke3
{[%clk 0:00:07.8]} 72... Kf5 {[%clk 0:00:09.4]} 73. Kf3 {[%clk 0:00:08.1]} 73...
e4+ {[%clk 0:00:10.3]} 74. Ke3 {[%clk 0:00:08.5]} 74... Ke5 {[%clk 0:00:11.1]}
75. Ke2 {[%clk 0:00:08.9]} 75... Kd4 {[%clk 0:00:11.9]} 76. Kd2 {[%clk
0:00:08.8]} 76... e3+ {[%clk 0:00:12.8]} 77. Ke2 {[%clk 0:00:09.2]} 77... Ke4
{[%clk 0:00:13.7]} 78. Ke1 {[%clk 0:00:09.5]} 78... Kd3 {[%clk 0:00:14.6]} 79.
Kd1 {[%clk 0:00:09.8]} 79... e2+ {[%clk 0:00:15.5]} 80. Ke1 {[%clk 0:00:10.2]}
80... Ke3 {[%clk 0:00:16.4]} 1/2-1/2

[Event "Late-Titled-Tuesday-Blitz-August-29-2023"]
[Site "Chess.com"]
[Date "2023.08.29"]
[Round "11"]
[White "ilya2700"]
[Black "S-Fazulyanov"]
[Result "0-1"]
[WhiteElo "2138"]
[BlackElo "2527"]
[TimeControl "180+1"]
[EndTime "15:58:31 PDT"]
[Termination "S-Fazulyanov won by resignation"]

1. c4 {[%clk 0:02:56.7]} 1... e5 {[%clk 0:02:59.2]} 2. Nc3 {[%clk 0:02:56.5]}
2... Nc6 {[%clk 0:02:59.2]} 3. Nf3 {[%clk 0:02:56.8]} 3... g6 {[%clk 0:02:58.9]}
4. d3 {[%clk 0:02:55.5]} 4... Bg7 {[%clk 0:02:58.3]} 5. h4 {[%clk 0:02:56.2]}
5... h6 {[%clk 0:02:57.8]} 6. e4 {[%clk 0:02:53.6]} 6... Nge7 {[%clk 0:02:57]}
7. h5 {[%clk 0:02:43]} 7... g5 {[%clk 0:02:56.1]} 8. Be3 {[%clk 0:02:38.8]} 8...
d6 {[%clk 0:02:55]} 9. Rb1 {[%clk 0:02:36.2]} 9... Bg4 {[%clk 0:02:53.5]} 10.
Be2 {[%clk 0:02:35.2]} 10... a5 {[%clk 0:02:50.9]} 11. a3 {[%clk 0:02:35]} 11...
Qd7 {[%clk 0:02:50.3]} 12. b4 {[%clk 0:02:20]} 12... axb4 {[%clk 0:02:50.9]} 13.
axb4 {[%clk 0:02:20.2]} 13... f5 {[%clk 0:02:50.9]} 14. exf5 {[%clk 0:02:15.4]}
14... Nxf5 {[%clk 0:02:47.9]} 15. Nxe5 {[%clk 0:02:05.4]} 15... Bxe5 {[%clk
0:02:37.3]} 16. Bxg4 {[%clk 0:02:02.9]} 16... Bxc3+ {[%clk 0:02:36.7]} 17. Kf1
{[%clk 0:02:03.6]} 17... O-O {[%clk 0:02:24.1]} 18. c5 {[%clk 0:01:56.8]} 18...
Nxe3+ {[%clk 0:02:22.8]} 0-1

[Event "Late-Titled-Tuesday-Blitz-August-29-2023"]
[Site "Chess.com"]
[Date "2023.08.29"]
[Round "11"]
[White "Masterisback04"]
[Black "maurovargas01"]
[Result "1-0"]
[WhiteElo "1761"]
[BlackElo "1867"]
[TimeControl "180+1"]
[EndTime "15:58:33 PDT"]
[Termination "Masterisback04 won by checkmate"]

1. e4 {[%clk 0:03:00.9]} 1... d5 {[%clk 0:02:59]} 2. exd5 {[%clk 0:02:59.9]}
2... Qxd5 {[%clk 0:02:59.9]} 3. Nc3 {[%clk 0:02:59.6]} 3... Qa5 {[%clk
0:02:55.5]} 4. d4 {[%clk 0:02:57.9]} 4... c6 {[%clk 0:02:55.5]} 5. Nf3 {[%clk
0:02:55.9]} 5... Nf6 {[%clk 0:02:55.5]} 6. g4 {[%clk 0:02:55.4]} 6... Bxg4
{[%clk 0:02:54.8]} 7. Rg1 {[%clk 0:02:54.4]} 7... Qh5 {[%clk 0:02:52.8]} 8. Be2
{[%clk 0:02:53.6]} 8... Nbd7 {[%clk 0:02:45.5]} 9. Bf4 {[%clk 0:02:53.5]} 9...
e6 {[%clk 0:02:37.7]} 10. Qd3 {[%clk 0:02:52.1]} 10... O-O-O {[%clk 0:02:24.9]}
11. O-O-O {[%clk 0:02:51.7]} 11... Be7 {[%clk 0:02:14.6]} 12. h3 {[%clk
0:02:49.6]} 12... Bf5 {[%clk 0:02:11.1]} 13. Qc4 {[%clk 0:02:49.1]} 13... Nd5
{[%clk 0:01:39.3]} 14. Qxc6+ {[%clk 0:02:43.9]} 14... bxc6 {[%clk 0:01:28.9]}
15. Ba6# {[%clk 0:02:43.8]} 1-0

[Event "Late-Titled-Tuesday-Blitz-August-29-2023"]
[Site "Chess.com"]
[Date "2023.08.29"]
[Round "11"]
[White "Chemim21"]
[Black "garfield_pg"]
[Result "0-1"]
[WhiteElo "2281"]
[BlackElo "2387"]
[TimeControl "180+1"]
[EndTime "15:59:09 PDT"]
[Termination "garfield_pg won by resignation"]

1. d4 {[%clk 0:03:00.9]} 1... d5 {[%clk 0:02:59.5]} 2. Bg5 {[%clk 0:03:00]} 2...
f6 {[%clk 0:02:59.2]} 3. Bh4 {[%clk 0:02:58.4]} 3... Nh6 {[%clk 0:02:58.8]} 4.
e3 {[%clk 0:02:55.6]} 4... Nf5 {[%clk 0:02:58.8]} 5. Bg3 {[%clk 0:02:55.1]} 5...
h5 {[%clk 0:02:57.2]} 6. Bd3 {[%clk 0:02:40.1]} 6... h4 {[%clk 0:02:54.1]} 7.
Bf4 {[%clk 0:02:12.6]} 7... g5 {[%clk 0:02:51.7]} 8. Qg4 {[%clk 0:02:06.5]} 8...
e6 {[%clk 0:02:37.1]} 9. h3 {[%clk 0:01:54.4]} 9... gxf4 {[%clk 0:02:34.9]} 10.
Qg6+ {[%clk 0:01:54.3]} 10... Ke7 {[%clk 0:02:33.5]} 11. Bxf5 {[%clk 0:01:22.9]}
11... exf5 {[%clk 0:02:31]} 12. exf4 {[%clk 0:01:18.1]} 12... Rh6 {[%clk
0:02:27.8]} 13. Qg8 {[%clk 0:01:16.6]} 13... Be6 {[%clk 0:02:27.3]} 0-1

[Event "Late-Titled-Tuesday-Blitz-August-29-2023"]
[Site "Chess.com"]
[Date "2023.08.29"]
[Round "11"]
[White "DeTimmerman"]
[Black "Arystanner"]
[Result "0-1"]
[WhiteElo "2674"]
[BlackElo "2866"]
[TimeControl "180+1"]
[EndTime "15:59:52 PDT"]
[Termination "Arystanner won by resignation"]

1. b4 {[%clk 0:03:00.1]} 1... e5 {[%clk 0:02:59.2]} 2. Bb2 {[%clk 0:03:00.5]}
2... Bxb4 {[%clk 0:02:59.2]} 3. Bxe5 {[%clk 0:03:01]} 3... Nf6 {[%clk
0:02:59.5]} 4. Nc3 {[%clk 0:03:00.9]} 4... O-O {[%clk 0:02:58.3]} 5. Bxf6 {[%clk
0:03:01.3]} 5... Qxf6 {[%clk 0:02:58.3]} 6. Nd5 {[%clk 0:03:02.2]} 6... Qd6
{[%clk 0:02:58.5]} 7. c4 {[%clk 0:03:02.5]} 7... Ba5 {[%clk 0:02:49.3]} 8. e3
{[%clk 0:03:01.8]} 8... c6 {[%clk 0:02:49.4]} 9. Nf4 {[%clk 0:03:01.9]} 9... Qf6
{[%clk 0:02:48.8]} 10. Nf3 {[%clk 0:03:01.7]} 10... d6 {[%clk 0:02:46.5]} 11.
Be2 {[%clk 0:03:01.8]} 11... Bf5 {[%clk 0:02:45.8]} 12. Nh5 {[%clk 0:03:00]}
12... Qh6 {[%clk 0:02:42.7]} 13. Ng3 {[%clk 0:02:57.8]} 13... Be6 {[%clk
0:02:41.2]} 14. O-O {[%clk 0:02:57.5]} 14... Nd7 {[%clk 0:02:41.5]} 15. d4
{[%clk 0:02:57.3]} 15... Rfe8 {[%clk 0:02:41.3]} 16. d5 {[%clk 0:02:52.7]} 16...
cxd5 {[%clk 0:02:40.9]} 17. cxd5 {[%clk 0:02:53.6]} 17... Bg4 {[%clk 0:02:40.8]}
18. Qa4 {[%clk 0:02:54.1]} 18... Bxf3 {[%clk 0:02:08.8]} 19. Bxf3 {[%clk
0:02:55]} 19... Bc3 {[%clk 0:02:04.6]} 20. Rac1 {[%clk 0:02:53.6]} 20... Nc5
{[%clk 0:02:03.7]} 21. Qb5 {[%clk 0:02:46]} 21... Be5 {[%clk 0:02:03.7]} 22. Rc4
{[%clk 0:02:43.6]} 22... a6 {[%clk 0:02:02.6]} 23. Qb1 {[%clk 0:02:42.9]} 23...
b5 {[%clk 0:02:01.6]} 24. Rg4 {[%clk 0:02:43.2]} 24... Bxg3 {[%clk 0:02:01.6]}
25. hxg3 {[%clk 0:02:41.4]} 25... Qf6 {[%clk 0:02:01.6]} 26. Rd1 {[%clk
0:02:38.8]} 26... Rac8 {[%clk 0:01:58.3]} 27. Rdd4 {[%clk 0:02:30.5]} 27... Nd7
{[%clk 0:01:58.3]} 28. Rh4 {[%clk 0:02:29.2]} 28... g6 {[%clk 0:01:57.7]} 29.
Rhf4 {[%clk 0:02:28.6]} 29... Qg7 {[%clk 0:01:57.5]} 30. a4 {[%clk 0:02:13.3]}
30... Rb8 {[%clk 0:01:42]} 31. axb5 {[%clk 0:02:09.6]} 31... axb5 {[%clk
0:01:42.5]} 32. Bg4 {[%clk 0:02:03.7]} 32... Ne5 {[%clk 0:01:42]} 33. Be2 {[%clk
0:02:02.9]} 33... f5 {[%clk 0:01:35.8]} 34. Rc4 {[%clk 0:02:02.7]} 34... bxc4
{[%clk 0:01:35.4]} 0-1